Workbook

Sheet ANEXO II
A1: PLANILHA DE ESPECIFICAÇÕES TÉCNICAS, QUANTITATIVOS E PREÇOS
A2: ITEM | B2: CATMAT | C2: ESPECIFICAÇÕES | D2: COTA DECRETO | E2: UNID | F2: QUANTITATIVO POR LOCAL (ESTADO) | H2: QUANTITATIVO TOTAL | I2: VALOR UNITÁRIO (R$) | J2: VALOR TOTAL (R$) | K2: VALOR DO ITEM (R$)
A4: 1 | B4: 150787 | C4: Aerador De Pás para Piscicultura, trifásico com potência mínima de 1,5cv. Garantia: 12 meses | D4: Principal | E4: und | F4: DF | G4: 7 | H4: 30 | I4: 3921.5 | J4: =G4*I4 -> 27450.5 | K4: =SUM(J4:J6) -> 117645
E5: und | F5: GO | G5: 16 | I5: 3921.5 | J5: =G5*I5 -> 62744
E6: und | F6: MT | G6: 7 | I6: 3921.5 | J6: 27450.5
A7: 2 | B7: 150787 | C7: Aerador De Pás para Piscicultura, trifásico com potência mínima de 1,5cv. Garantia: 12 meses | D7: Reserva – ME/EPP | E7: und | F7: DF | G7: 3 | H7: 10 | I7: 3921.5 | J7: 11764.5 | K7: =J7+J8+J9 -> 39215
E8: und | F8: GO | G8: 5 | I8: 3921.5 | J8: 19607.5
E9: und | F9: MT | G9: 2 | I9: 3921.5 | J9: 7843
A10: 3 | B10: 150902 | C10: Alevinos, tilápia, revertidos sexualmente, 3 a 6cm | D10: Principal | E10: milheiro | F10: DF | G10: 20 | H10: 1470 | I10: 323.3333333 | J10: 6466.666667 | K10: =SUM(J10:J12) -> 475300
E11: milheiro | F11: GO | G11: 1080 | I11: 323.3333333 | J11: 349200
E12: milheiro | F12: MT | G12: 370 | I12: 323.3333333 | J12: 119633.3333
A13: 4 | B13: 150902 | C13: Alevinos, tilápia, revertidos sexualmente, 3 a 6cm | D13: Reserva – ME/EPP | E13: milheiro | F13: DF | G13: 20 | H13: 490 | I13: 323.3333333 | J13: 6466.666667 | K13: =J13+J14+J15 -> 158433.3333
E14: milheiro | F14: GO | G14: 350 | I14: 323.3333333 | J14: 113166.6667
E15: milheiro | F15: MT | G15: 120 | I15: 323.3333333 | J15: 38800
A16: 5 | B16: 286132 | C16: Artêmia para alimentação inicial de pós-larvas, saco 1kg | D16: Exclusiva | E16: kg | F16: GO | G16: 24 | H16: 24 | I16: 541.4566667 | J16: 12994.96 | K16: =J16 -> 12994.96
A17: 6 | B17: 411615 | C17: Autoclave, material aço inox, tipo horizontal, modelo gravitacional, operação automática, digital, característica adicional sistemas de secagem e segurança,volume câmara de 30 a 50 l, composição sensores temperatura e pressão, alarmes, outros componentes com 3 bandejas, 1 porta. Garantia: 12 meses | D17: Exclusiva | E17: und | F17: GO | G17: 1 | H17: 1 | I17: 4910.44 | J17: 4910.44 | K17: =J17 -> 4910.44
A18: 7 | B18: 150734 | C18: Avental, Medidas aprox.: 120x70cm. Características: modelo forrado, tipo impermeável PVC, cor branca, com tiras de amarrar fixas. | D18: Exclusiva | E18: und | F18: GO | G18: 25 | H18: 40 | I18: 12.17 | J18: 304.25 | K18: =J18+J19 -> 486.8
E19: und | F19: MT | G19: 15 | I19: 12.17 | J19: 182.55
A20: 8 | B20: 150748 | C20: Balança eletrônica de precisão, capacidade mínima 2010 g, com microprocessador, possui tara subtrativa, mostrador digital de cristal líquido. Funções: pesagem simples, contagem de peças, porcentagem absoluta, porcentagem relativa, determinação de densidade, verificação de peso, cálculo estatístico, pesagem de animais vivos e função básica (incorpora contagem de peças e porcentagens absoluta e relativa). Garantia: 12 meses | D20: Exclusiva | E20: und | F20: DF | G20: 1 | H20: 2 | I20: 3376.366667 | J20: 3376.366667 | K20: =J20+J21 -> 6752.733333
E21: und | F21: GO | G21: 1 | I21: 3376.366667 | J21: 3376.366667
A22: 9 | B22: 150748 | C22: Balança Plataforma Digital - Capacidade mínima de 150 Kg, divisão 50 g, em aço inox, com coluna, gabinete de plástico injetado, com indicação de sobrecarga, com bateria com indicador de carga, back light e alimentação 110 e 220 volts. Garantia: 12 meses | D22: Principal | E22: und | F22: DF | G22: 8 | H22: 60 | I22: 1022.833333 | J22: 8182.666667 | K22: =SUM(J22:J24) -> 61369.99943
E23: und | F23: GO | G23: 35 | I23: 1022.833333 | J23: 35799.16667
E24: und | F24: MT | G24: 17 | I24: 1022.8333 | J24: 17388.1661
A25: 10 | B25: 150749 | C25: Balança Plataforma Digital - Capacidade mínima de 150 Kg, divisão 50 g, em aço inox, com coluna, gabinete de plástico injetado, com indicação de sobrecarga, com bateria com indicador de carga, back light e alimentação 110 e 220 volts. Garantia: 12 meses | D25: Reserva – ME/EPP | E25: und | F25: DF | G25: 2 | H25: 20 | I25: 1022.8333 | J25: 2045.6666 | K25: =J25+J26+J27 -> 20456.666
E26: und | F26: GO | G26: 15 | I26: 1022.8333 | J26: 15342.4995
E27: und | F27: MT | G27: 3 | I27: 1022.8333 | J27: 3068.4999
A28: 11 | B28: 43192 | C28: Balança digital com gancho - Utilizada em pesca esportiva, capacidade mínima de 50 kg, a bateria, display com, no mínimo, 4 dígitos , gancho em inox, com fita métrica. | D28: Exclusiva | E28: und | F28: DF | G28: 10 | H28: 80 | I28: 85.33333333 | J28: 853.3333333 | K28: =SUM(J28:J30) -> 6826.666667
E29: und | F29: GO | G29: 50 | I29: 85.33333333 | J29: 4266.666667
E30: und | F30: MT | G30: 20 | I30: 85.33333333 | J30: 1706.666667
A31: 12 | B31: 459743 | C31: Balança eletrônica - Capacidade pesagem 15 kg, voltagem 110/220, características adicionais computadorizada, divisão de 5 g, bandeja opcional, tipo painel cristal líquido. Garantia: 12 meses | D31: Exclusiva | E31: und | F31: GO | G31: 25 | H31: 40 | I31: 721.1433333 | J31: 18028.58333 | K31: =J31+J32 -> 28845.73333
E32: und | F32: MT | G32: 15 | I32: 721.1433333 | J32: 10817.15
A33: 13 | B33: 150787 | C33: Balde equipamento/acessório piscicultura, para limpeza e/ou manejo de incubadora de reprodução de peixes (30L), Tela removível malha de 250 microns em aço inox | D33: Exclusiva | E33: und | F33: GO | G33: 3 | H33: 3 | I33: 919.5 | J33: 2758.5 | K33: =J33 -> 2758.5
A34: 14 | B34: 150787 | C34: Balsa de manejo e despesca, equipamento/acessório piscicultura,formato em U, plataforma 7m x 4,5m e 2 passarelas laterais de 1,5m com estrutura metálica de 4 m de pé direito em estrutura metálica e cobertura. Com guincho para alavancar os tanques. Com flutuadores e assoalho em chapa e chapa de alumínio de 3mm naval. | D34: Principal | E34: und | F34: GO | G34: 23 | H34: 30 | I34: 85600 | J34: 1968800 | K34: =SUM(J34:J35) -> 2568000
E35: und | F35: MT | G35: 7 | I35: 85600 | J35: 599200
A36: 15 | B36: 150788 | C36: Balsa de manejo e despesca, equipamento/acessório piscicultura,formato em U, plataforma 7m x 4,5m e 2 passarelas laterais de 1,5m com estrutura metálica de 4 m de pé direito em estrutura metálica e cobertura. Com guincho para alavancar os tanques. Com flutuadores e assoalho em chapa e chapa de alumínio de 3mm naval. | D36: Reserva – ME/EPP | E36: und | F36: GO | G36: 7 | H36: 10 | I36: 85600 | J36: 599200 | K36: =J36+J37 -> 856000
E37: und | F37: MT | G37: 3 | I37: 85600 | J37: 256800
A38: 16 | B38: 436700 | C38: Banho maria digital universal 220v 30 litros - medidas internas 20 x 50 x 30 -medidas externas 31 x 53 x 33, chapa de aço carbono com tratamento anti-corrosivo, sendo parte externa em pintura epóxi, cuba sem emendas ou soldas em aço inox. Tampa pingadeira e base perfurada em aço inox, Controlador digital microprocessado com sistema PID, autotuning e duplo display de 4 dígitos. Garantia: 12 meses | D38: Exclusiva | E38: und | F38: GO | G38: 1 | H38: 1 | I38: 3015.666667 | J38: 3015.666667 | K38: =J38 -> 3015.666667
A39: 17 | B39: 89826 | C39: Barco de alumínio 6 metros – Comprimento mínimo total de 6 metros, largura máxima da boca de 1,40m, capacidade para motorização de 25HP. Lotação mínima de 04 pessoas. | D39: Principal | E39: und | F39: GO | G39: 20 | H39: 30 | I39: 5636.666667 | J39: 112733.3333 | K39: =SUM(J39:J40) -> 169100
E40: und | F40: MT | G40: 10 | I40: 5636.666667 | J40: 56366.66667
A41: 18 | B41: 89827 | C41: Barco de alumínio 6 metros – Comprimento mínimo total de 6 metros, largura máxima da boca de 1,40m, capacidade para motorização de 25HP. Lotação mínima de 04 pessoas. | D41: Reserva – ME/EPP | E41: und | F41: GO | G41: 5 | H41: 10 | I41: 5636.666667 | J41: 28183.33333 | K41: =J41+J42 -> 56366.66667
E42: und | F42: MT | G42: 5 | I42: 5636.666667 | J42: 28183.33333
A43: 19 | B43: 296349 | C43: Berçário para alevinagem – Material tela em poliéster resistente raios ultravioletas, tipo bolsão, formato losangular abertura 5mm, dimensões 1,80 x 1,80 x 1,10, comedouros fabricados em pvc, malha 0,5 a 0,7mm, altura 70cm. | D43: Principal | E43: und | F43: DF | G43: 4 | H43: 120 | I43: 525.945 | J43: 2103.78 | K43: =SUM(J43:J45) -> 63113.4
E44: und | F44: GO | G44: 84 | I44: 525.945 | J44: 44179.38
E45: und | F45: MT | G45: 32 | I45: 525.945 | J45: 16830.24
A46: 20 | B46: 296350 | C46: Berçário para alevinagem – Material tela em poliéster resistente raios ultravioletas, tipo bolsão, formato losangular abertura 5mm, dimensões 1,80 x 1,80 x 1,10, comedouros fabricados em pvc, malha 0,5 a 0,7mm, altura 70cm. | D46: Reserva – ME/EPP | E46: und | F46: DF | G46: 2 | H46: 40 | I46: 525.945 | J46: 1051.89 | K46: =SUM(J46:J48) -> 21037.8
E47: und | F47: GO | G47: 30 | I47: 525.945 | J47: 15778.35
E48: und | F48: MT | G48: 8 | I48: 525.945 | J48: 4207.56
A49: 21 | B49: 19607 | C49: Barraca para feira livre completa, dimensões mínimas 2,00m (frente) x 1,50m (lateral), altura 2,00m, estrutura tubular desmontável, galvanizada, com balcão superior e inferior, lona nos 03 lados e na parte superior, cobertura com avanço frente e traz. Logomarca da Codevasf estampada/pintada nas cores azul, branca e verde na lona da frente (canto inferior direito, a 15cm da borda) e no avanço da parte superior (canto direito, a 3,0cm da borda), nas dimensões 19,5cm x 75,0cm e 6,5cm x 25,0cm, respectivamente. | D49: Exclusiva | E49: und | F49: GO | G49: 25 | H49: 40 | I49: 669.5166667 | J49: 16737.91667 | K49: =J49+J50 -> 26780.66667
E50: und | F50: MT | G50: 15 | I50: 669.5166667 | J50: 10042.75
A51: 22 | B51: 395320 | C51: Bebedouro água, tipo industrial, características adicionais 3 torneiras baixa pressão/ temperatura 4ºc a 9ºc, material gabinete aço inox e poliuretano injetado, capacidade água 100 l, material corpo aço inoxidável. Garantia: 12 meses | D51: Exclusiva | E51: und | F51: GO | G51: 1 | H51: 1 | I51: 2166.633333 | J51: 2166.633333 | K51: =J51 -> 2166.633333
A52: 23 | B52: 60151 | C52: Bombona, polietileno de alta densidade, com capacidade 200 l, com tampa removível e rosqueável, | D52: Exclusiva | E52: und | F52: GO | G52: 50 | H52: 80 | I52: 204.6166667 | J52: 10230.83333 | K52: =J52+J53 -> 16369.33333
E53: und | F53: MT | G53: 30 | I53: 204.6166667 | J53: 6138.5
A54: 24 | B54: 42366 | C54: Bóia Sinalização/Amarração, 40 a 45 cm de diâmetro em formato cônico, recheada com espuma de poliuretano, rotomoldada em polietileno de media densidade, resistente à corrosão e deterioração quando expostos à luz solar, na cor amarela. | D54: Principal | E54: und | F54: GO | G54: 225 | H54: 300 | I54: 202.2566667 | J54: 45507.75 | K54: =SUM(J54:J55) -> 60677
E55: und | F55: MT | G55: 75 | I55: 202.2566667 | J55: 15169.25
A56: 25 | B56: 42367 | C56: Bóia Sinalização/Amarração, 40 a 45 cm de diâmetro em formato cônico, recheada com espuma de poliuretano, rotomoldada em polietileno de media densidade, resistente à corrosão e deterioração quando expostos à luz solar, na cor amarela. | D56: Reserva – ME/EPP | E56: und | F56: GO | G56: 75 | H56: 100 | I56: 202.2566667 | J56: 15169.25 | K56: =J56+J57 -> 20225.6675
E57: und | F57: MT | G57: 25 | I57: 202.2567 | J57: 5056.4175
A58: 26 | B58: 292149 | C58: Botijão criogênico, capacidade 35 a 40L, capacidade armazenamento 6 canecas | D58: Exclusiva | E58: und | F58: GO | G58: 2 | H58: 2 | I58: 4793.333333 | J58: 9586.666667 | K58: =J58 -> 9586.666667
A59: 27 | B59: 292149 | C59: Botijão criogênico tipo Dry Shipper, capacidade aproximada 3,5L, capacidade armazenamento 1 caneca | D59: Exclusiva | E59: und | F59: GO | G59: 2 | H59: 2 | I59: 3871.366667 | J59: 7742.733333 | K59: =J59 -> 7742.733333
A60: 28 | B60: 150756 | C60: Caixa d’água 1000 litros, polietileno, média densidade, travamento da tampa de simples encaixe | D60: Exclusiva | E60: und | F60: DF | G60: 10 | H60: 160 | I60: 202.77 | J60: 2027.7 | K60: =J60+J61+J62 -> 32443.2
E61: und | F61: GO | G61: 100 | I61: 202.77 | J61: 20277
E62: und | F62: MT | G62: 50 | I62: 202.77 | J62: 10138.5
A63: 29 | B63: 150756 | C63: Caixa de transporte peixes/alevinos (1.000 l), com mangueira micro perfurada a laser, regulador de pressão (fluxômetro e manômetro) e calha para descarga, fabricado em fibra de vidro, registro, isolamento térmico, com tampa superior e inferior, ferragem em aço inox | D63: Exclusiva | E63: und | F63: DF | G63: 1 | H63: 2 | I63: 10549.14 | J63: 10549.14 | K63: =J63+J64 -> 21098.28
E64: und | F64: GO | G64: 1 | I64: 10549.14 | J64: 10549.14
A65: 30 | B65: 150756 | C65: Caixa de transporte peixes/alevinos (400 l), com mangueira micro perfurada a laser, regulador de pressão (fluxômetro e manômetro) e calha para descarga, fabricado em fibra de vidro, registro, isolamento térmico, com tampa superior e inferior, ferragem em aço inox | D65: Exclusiva | E65: und | F65: DF | G65: 1 | H65: 2 | I65: 6609.053333 | J65: 6609.053333 | K65: =J65+J66 -> 13218.10667
E66: und | F66: GO | G66: 1 | I66: 6609.053333 | J66: 6609.053333
A67: 31 | B67: 373317 | C67: Caixa térmica 75 litros , Fabricada em material poliuretano expandido, capacidade 60 litros, tampa articulada, trinco embutido, alça dupla e dreno. | D67: Exclusiva | E67: und | F67: DF | G67: 6 | H67: 86 | I67: 184.54 | J67: 1107.24 | K67: =J67+J68+J69 -> 15870.44
E68: und | F68: GO | G68: 50 | I68: 184.54 | J68: 9227
E69: und | F69: MT | G69: 30 | I69: 184.54 | J69: 5536.2
A70: 32 | B70: 216960 | C70: Cal virgem, material óxido cálcio, cor branca, apresentação pó (saco de 20 kg) | D70: Exclusiva | E70: sc | F70: GO | G70: 60 | H70: 60 | I70: 31.56333333 | J70: 1893.8 | K70: =J70 -> 1893.8
A71: 33 | B71: 402953 | C71: Calcário dolomítico, aspecto físico:pó, composição:prnt de 80 - 90% (saco de50 kg) | D71: Exclusiva | E71: sc | F71: GO | G71: 45 | H71: 45 | I71: 160.87 | J71: 7239.15 | K71: =J71 -> 7239.15
A72: 34 | B72: 411380 | C72: Câmara de contagem, tipo Neubauer Dupla Melhorada Espelhada | D72: Exclusiva | E72: unid | F72: GO | G72: 2 | H72: 2 | I72: 329.81 | J72: 659.62 | K72: =J72 -> 659.62
A73: 35 | B73: 214879 | C73: Caminhão com Baú Frigorífico, 0 km, ano de fabricação corrente, diesel, potência mínima do motor de 150 CV, capacidade de carga útil mais carroceria de 2.100 kg, direção hidráulica, embreagem de acionamento hidráulico, ar condicionado. Baú tipo frigorífico em fibra de vidro na cor branca, com isolamento térmico em poliuretano, termômetro na porta traseira, portas traseira e lateral com dupla borracha de vedação, assoalho tipo sanduíche com revestimento interno em alumínio canaletado. Comprimento de 2,8m, volume mínimo de 9m³ e que ajuste adequadamente ao chassi; capacidade de resfriamento de -10ºC e funcionamento de modo acoplado ou elétrico. O 1º emplacamento em favor da Codevasf, com taxas e impostos quitados. Logomarca da CODEVASF silkada em local visível. Garantia mínima de 12 meses. | D73: Principal | E73: unid | F73: GO | G73: 20 | H73: 30 | I73: 236000 | J73: 4720000 | K73: =SUM(J73:J74) -> 7080000
E74: unid | F74: MT | G74: 10 | I74: 236000 | J74: 2360000
A75: 36 | B75: 214879 | C75: Caminhão com Baú Frigorífico, 0 km, ano de fabricação corrente, diesel, potência mínima do motor de 150 CV, capacidade de carga útil mais carroceria de 2.100 kg, direção hidráulica, embreagem de acionamento hidráulico, ar condicionado. Baú tipo frigorífico em fibra de vidro na cor branca, com isolamento térmico em poliuretano, termômetro na porta traseira, portas traseira e lateral com dupla borracha de vedação, assoalho tipo sanduíche com revestimento interno em alumínio canaletado. Comprimento de 2,8m, volume mínimo de 9m³ e que ajuste adequadamente ao chassi; capacidade de resfriamento de -10ºC e funcionamento de modo acoplado ou elétrico. O 1º emplacamento em favor da Codevasf, com taxas e impostos quitados. Logomarca da CODEVASF silkada em local visível. Garantia mínima de 12 meses. | D75: Reserva – ME/EPP | E75: unid | F75: GO | G75: 5 | H75: 10 | I75: 236000 | J75: =G75*I75 -> 1180000 | K75: =J75+J76 -> 2360000
E76: unid | F76: MT | G76: 5 | I76: 236000 | J76: =G76*I76 -> 1180000
A77: 37 | B77: 52698 | C77: Carrinho mão, material caçamba chapa aço galvanizado, chassi ferro, pés ferro, tipo travessa suporte dianteiro caçamba, quantidade roda 1, pneu com 3,2 pol de diâmetro, espessura caçamba 5 mm, comprimento eixo 25 cm, comprimento 80 cm, largura 62 cm, altura 20 cm. | D77: Exclusiva | E77: unid | F77: DF | G77: 10 | H77: 40 | I77: 114.9366667 | J77: 1149.366667 | K77: =J77+J78+J79 -> 4597.466667
E78: unid | F78: GO | G78: 20 | I78: 114.9366667 | J78: 2298.733333
E79: unid | F79: MT | G79: 10 | I79: 114.9366667 | J79: 1149.366667
A80: 38 | B80: 418925 | C80: Centrífuga, tipo para tubos, ajuste digital, c/ painel de controle, programável, volume até 15 ml, capacidade até 16 unidades, rotação 4000 - 5000 rpm, temporização temporizador até 99 min, adicional segurança tampa aberta, alarme desbalanceamento. Garantia: 12 meses | D80: Exclusiva | E80: unid | F80: GO | G80: 1 | H80: 1 | I80: 3356.663333 | J80: 3356.663333 | K80: =J80 -> 3356.663333
A81: 39 | B81: 414379 | C81: Cilindro gás, material aço, tipo gás: oxigênio, 3m3 (20 l) | D81: Exclusiva | E81: unid | F81: GO | G81: 1 | H81: 1 | I81: 882.9666667 | J81: 882.9666667 | K81: =J81 -> 882.9666667
A82: 40 | B82: 414379 | C82: Cilindro gás, material aço, tipo gás: oxigênio, 10m3 (50 l) | D82: Exclusiva | E82: unid | F82: GO | G82: 1 | H82: 1 | I82: 1310 | J82: 1310 | K82: 1310
A83: 41 | B83: 374339 | C83: Colete salva-vidas classe 3, 110kg, canga, com apito | D83: Exclusiva | E83: unid | F83: GO | G83: 180 | H83: 240 | I83: 36.9 | J83: 6642 | K83: =J83+J84 -> 8856
E84: unid | F84: MT | G84: 60 | I84: 36.9 | J84: 2214
A85: 42 | B85: 103764 | C85: Compressor de ar, motor elétrico, com proteção térmica, registro de saída de ar, deslocamento teórico (pcm) / (litros/min): 10 / 283, potência (cv): 2; pressão máxima (libras/pol²) : 125 a 140; tensão (v): 220; volume do reservatório (litros): 93. Garantia: 12 meses | D85: Exclusiva | E85: unid | F85: GO | G85: 1 | H85: 1 | I85: 1739.963333 | J85: 1739.963333 | K85: =J85 -> 1739.963333
A86: 43 | B86: 389764 | C86: Desinfetante a base de Monopersulfato de Potássio para utensílios do laboratório (500g) | D86: Exclusiva | E86: unid | F86: GO | G86: 20 | H86: 20 | I86: 182.96 | J86: 3659.2 | K86: =J86 -> 3659.2
A87: 44 | B87: 294510 | C87: Destilador água, capacidade 5 l/h, voltagem 127/220 v, características adicionais desligamento automático na falta d’água; lâmpada, material aço inoxidável, tipo pilsen | D87: Exclusiva | E87: unid | F87: GO | G87: 1 | H87: 1 | I87: 1572.666667 | J87: 1572.666667 | K87: 1572.666667
A88: 45 | B88: 444399 | C88: Espectrofotômetro digital, Sistema óptico: simples feixe, grade 1200 linhas/mm Faixa espectral: 190 - 1000nm Largura da banda: 2 - 4nm Precisão de banda: ± 1 nm Repetibilidade de banda: 0.5 nm Definição de comprimento de onda: Auto Precisão fotométrica: ± 0.5%T Repetibilidade fotométrica: 0.3%T Faixa fotométrica: -0.3A, 0-200%T Dispersão de Luz: = 0.3%T Estabilidade: ± 0.002A/h a 500 nm Display: LCD Suporte de cubeta padrão: 4 posições 10 mm Saída: Porta USD e porta para impressora Lâmpada: Lâmpada tungstênio e D2, Dimensão: 420x280x180 mm, Acompanha: 04 CUBETAS DE VIDRO 1 CM- 02 CUBETA DE QUARTZO. Manual de instrução, garantia 12meses. | D88: Exclusiva | E88: unid | F88: GO | G88: 1 | H88: 1 | I88: 15655 | J88: 15655 | K88: 15655
A89: 46 | B89: 354816 | C89: Extrato de Hipófise de peixes carpas padronizadas | D89: Exclusiva | E89: g | F89: GO | G89: 10 | H89: 10 | I89: 1406.666667 | J89: 14066.66667 | K89: 14066.66667
A90: 47 | B90: 150391 | C90: Fábrica de gelo 2t/dia - máquina fabricar gelo tipo escama, capacidade 2 toneladas/dia, com instalação | D90: Principal | E90: unid | F90: GO | G90: 20 | H90: 30 | I90: 101950 | J90: 2039000 | K90: =SUM(J90:J91) -> 3058500
E91: unid | F91: MT | G91: 10 | I91: 101950 | J91: 1019500
A92: 48 | B92: 150391 | C92: Fábrica de gelo 2t/dia - máquina fabricar gelo tipo escama, capacidade 2 toneladas/dia, com instalação | D92: Reserva – ME/EPP | E92: unid | F92: GO | G92: 5 | H92: 10 | I92: 101950 | J92: 509750 | K92: =J92+J93 -> 1019500
E93: unid | F93: MT | G93: 5 | I93: 101950 | J93: 509750
A94: 49 | B94: 334673 | C94: Faca lâmina aço inoxidável, material cabo plástico, tamanho 10 pol, aplicação cortar carne, cor cabo branca | D94: Exclusiva | E94: unid | F94: GO | G94: 50 | H94: 80 | I94: 38.77 | J94: 1938.5 | K94: =J94+J95 -> 3101.6
E95: unid | F95: MT | G95: 30 | I95: 38.77 | J95: 1163.1
A96: 50 | B96: 37680 | C96: Freezer horizontal capacidade 477 A 530L, quantidade tampas 2, cor branca, tensão alimentação bivolt, , com termostato, dreno frontal, puxador ergonômico com fechadura de segurança e manual em português, função de congelamento rápido, caixa interna em aço zincado, dupla função: permite seleção de uso como freezer (temperaturas negativas) ou refrigerador (temperaturas próximas a 0ºC), Garantia mínima: 12 meses | D96: Exclusiva | E96: unid | F96: GO | G96: 25 | H96: 40 | I96: 1829.206667 | J96: 45730.16667 | K96: =J96+J97 -> 73168.26667
D97: Exclusiva | E97: unid | F97: MT | G97: 15 | I97: 1829.206667 | J97: 27438.1
A98: 51 | B98: 296196 | C98: Garrafa de Van Dorn (2 a 5 L),Espessura da parede do acrílico: 5mm. Dimensões: 100 de diâmetro x360mm de comprimento. Disparador em aço carbono com pintura eletrostática e mensageiro em aço inox. Tampa vedação em borracha siliconada azul. Saída de água com mangueira de silicone. Acompanha 15 metros de cabo 100% polipropileno trançado de 5 mm. | D98: Exclusiva | E98: unid | F98: GO | G98: 1 | H98: 1 | I98: 2122.293333 | J98: 2122.293333 | K98: =J98 -> 2122.293333
A99: 52 | B99: 76473 | C99: Gerador de energia a diesel cabinado partida elétrica, refrigerado a ar, com potência de 7 KVA e potência contínua de 6,5 Kva. monofásico tanque com capacidade de 14-16 litros, Bivolt | D99: Exclusiva | E99: unid | F99: GO | G99: 1 | H99: 1 | I99: 8683.81 | J99: 8683.81 | K99: =J99 -> 8683.81
A100: 53 | B100: 150787 | C100: Incubadoras equipamento/acessório piscicultura, para ovos de peixes (200L), Fabricada em Polietileno de media densidade ou fibra de vidro, , Polietileno de media densidade ,Tela 300 micra, removível de aço inox , Tripé de aço carbono (desmontável) | D100: Exclusiva | E100: unid | F100: G0 | G100: 14 | H100: 14 | I100: 2000 | J100: 28000 | K100: 28000
A101: 54 | B101: 351228 | C101: Kit Colorimétrico para piscicultura de água doce análises de no mínimo seguintes parâmetros: potencial hidrogeniônico (pH), oxigênio dissolvido, nitrogênio amoniacal, nitrito, transparência, alcalinidade total, dureza total, temperatura. Disco de Sechi | D101: Exclusiva | E101: unid | F101: DF | G101: 10 | H101: 40 | I101: 1069.3 | J101: 10693 | K101: =SUM(J101:J103) -> 42772
E102: unid | F102: GO | G102: 20 | I102: 1069.3 | J102: 21386
E103: unid | F103: MT | G103: 10 | I103: 1069.3 | J103: 10693
A104: 55 | B104: 411362 | C104: Lanterna a prova d'água, com bateria recarregável e carregador, bivolt, lâmpadas 12 leds | D104: Exclusiva | E104: unid | F104: GO | G104: 50 | H104: 80 | I104: 78.81666667 | J104: 3940.833333 | K104: =J104+J105 -> 6305.333333
E105: unid | F105: MT | G105: 30 | I105: 78.81666667 | J105: 2364.5
A106: 56 | B106: 441644 | C106: Leitor e coletor de dados de microchip de identificação de animais, com memória. Par leitura de vários tipos de microchips, incluindo 2x12mm. | D106: Exclusiva | E106: unid | F106: 1 | G106: 1 | H106: 1 | I106: 1180 | J106: 1180 | K106: =J106 -> 1180
A107: 57 | B107: 411987 | C107: Luva anti-corte malha de aço inox, fechamento ajustável através de presilhas metálicas, aplicação contra cortes | D107: Exclusiva | E107: par | F107: GO | G107: 50 | H107: 80 | I107: 195.9633333 | J107: 9798.166667 | K107: =J107+J108 -> 15677.06667
E108: par | F108: MT | G108: 30 | I108: 195.9633333 | J108: 5878.9
A109: 58 | B109: 397422 | C109: Luva de procedimento descartável , látex, tamanho M, esterilidade não esterilizada, características adicionais antialérgico, tipo ambidestra, tipo uso descartável (caixa 100 unidades) | D109: Exclusiva | E109: cx | F109: GO | G109: 50 | H109: 80 | I109: 17.66 | J109: 883 | K109: =J109+J110 -> 1412.8
E110: cx | F110: MT | G110: 30 | I110: 17.66 | J110: 529.8
A111: 59 | B111: 318426 | C111: Luva de Segurança tricotada em três fios de algodão e poliéster na cor branca, pigmentos em pvc antiderrapantes na palma e face palmar dos dedos, punho com elastano, acabamento em overloque. | D111: Exclusiva | E111: par | F111: GO | G111: 300 | H111: 400 | I111: 2.97 | J111: 891 | K111: =J111+J112 -> 1188
E112: par | F112: MT | G112: 100 | I112: 2.97 | J112: 297
A113: 60 | B113: 239828 | C113: Máquina de fabricar gelo tipo cubo, material gabinete aço inoxidável, voltagem 220 volt, capacidade de produção 50 kg/dia. Garantia:12 meses | D113: Exclusiva | E113: und | F113: GO | G113: 1 | H113: 1 | I113: 5323.21 | J113: 5323.21 | K113: =J113 -> 5323.21
A114: 61 | B114: 358113 | C114: Mangueira porosa difusora para piscicultura (aeração),Vazão: 10 a 12 m³ / metro linear/ hora, pressão de trabalho: 0,5 bar (constante), Diâmetro interno: 1'', Diâmetro externo: 1 1/2" | D114: Exclusiva | E114: und | F114: GO | G114: 30 | H114: 30 | I114: 43.32666667 | J114: 1299.8 | K114: =J114 -> 1299.8
A115: 62 | B115: 150296 | C115: Medidor multiparâmetro portátil - Estação multiparâmentro de análise de água: pH, condutividade, salinidade, oxigênio dissolvido e temperatura, com sondas/eletrodos (pH, condutividade, salinidade, oxigênio dissolvido e temperatura), 2 Kits de membranas, Frascos de soluções para calibração, 1 Maleta para transporte. Garantia medidor: 24 meses, sonda: 6 meses. | D115: Principal | E115: und | F115: DF | G115: 8 | H115: 32 | I115: 3741.96 | J115: 29935.68 | K115: =J115+J116+J117 -> 119742.72
E116: und | F116: GO | G116: 16 | I116: 3741.96 | J116: 59871.36
E117: und | F117: MT | G117: 8 | I117: 3741.96 | J117: 29935.68
A118: 63 | B118: 150296 | C118: Medidor multiparâmetro portátil - Estação multiparâmentro de análise de água: pH, condutividade, salinidade, oxigênio dissolvido e temperatura, com sondas/eletrodos (pH, condutividade, salinidade, oxigênio dissolvido e temperatura), 2 Kits de membranas, Frascos de soluções para calibração, 1 Maleta para transporte. Garantia medidor: 24 meses, sonda: 6 meses. | D118: Reserva – ME/EPP | E118: und | F118: DF | G118: 3 | H118: 10 | I118: 3741.96 | J118: 11225.88 | K118: =J118+J119+J120 -> 37419.6
E119: und | F119: GO | G119: 5 | I119: 3741.96 | J119: 18709.8
E120: und | F120: MT | G120: 2 | I120: 3741.96 | J120: 7483.92
A121: 64 | B121: 117196 | C121: Mesa manipulação , preparação alimentos: constituída em chapa inox tipo aisi 304,dimensões aproximadas de 2,00 x 0,70 x 0,85 m. pés em tubo de aço inox | D121: Exclusiva | E121: und | F121: GO | G121: 25 | H121: 40 | I121: 1094.59 | J121: 27364.75 | K121: =J121+J122 -> 43783.6
E122: und | F122: MT | G122: 15 | I122: 1094.59 | J122: =G122*I122 -> 16418.85
A123: 65 | B123: 434787 | C123: Microchip 2x12mm, aplicação: para utilização em animais | D123: Exclusiva | E123: und | F123: GO | G123: 300 | H123: 300 | I123: 10.9 | J123: 3270 | K123: =J123 -> 3270
A124: 66 | B124: 440762 | C124: Microscópio. Luz transmitida com sistema ótico de correção infinita (ICS); Estativa e todas as engrenagens em metal; Tubo binocular com inclinação de 30º rotação de 360º; Par de oculares focalizáveis 10x/18 Br. com tratamento antifungo, trava porparafusos; ponteiro em uma das oculares; Distância interpupilar de 48 a 75 mm; Revólver reverso quatro objetivas; Conjunto de objetivas planas-acromáticas: Objetiva ""Plan-Achromat"" 4x/0,10; Objetiva ""Plan-Achromat"" 10x/0,25; Objetiva ""Plan-Achromat"" 40x/0,65 retrátil; Objetiva ""Plan-Achromat"" 100x/1,25 retrátil - imersão a óleo; Botão bilateral para focalizações macrométrica e micrométrica e escala micrométrica à esquerda; ajuste grosso de 4 mm por volta e ajuste fino de 0,3 mm por volta; deslocamento total de 15 mm; Platina mecânica com dimensões 140 x 135 mm, acionamento à direita e porta-objeto; Charriot com movimento XY graduado e limitador do movimento Z, evitando quebra de lâminas; deslocamento total de 75 mm no eixo X e 30 mm no eixo Y; Condensador fixo tipo Abbe N.A. 0,9/1,25; diafragma íris; compartimento para adaptar futuramente, aneis de fase e de campo escuro; Controle de intensidade luminosa incorporado ao microscópio e acoplado à função liga/desliga, que obriga a redução da intensidade antes do desligamento, prolongando a vida útil do LED ou da lâmpada; Duas opções de iluminação já inclusas: e lâmpada halógena 6 V / 30 W pré-centralizados, controle de intensidade luminosa e sistema de troca de LED/lâmpada protegido por parafusos - ferramenta inclusa; Escalas em LEDs nas laterais, indicadoras de intensidade luminosa, que facilita observar à distância, se o microscópio foi deixado ligado; Fonte de 100...240 V AC / 50...60 Hz / 30 VA com três adaptadores paradiferentes tipos de tomadas (bivolt automático); Tratamento antifungo nas oculares, tubo e objetivas; Compartimento de LED e lâmpada halógena; Opçãode futuramenteacoplarcomponentes para contraste de fase, campo escuro e fluorescência. Garantia: 12 meses | D124: Exclusiva | E124: und | F124: GO | G124: 1 | H124: 1 | I124: 6494.46 | J124: 6494.46 | K124: =J124 -> 6494.46
A125: 67 | B125: 440762 | C125: Microscópio.Estereomicroscópio. Sistema ótico de Greenough com ângulo estereoscópico de 11°;Zoom manual de 5:1 (0,8 x a 4,0 x) com botões para controle dos dois lados; Clickstops em zoom de 0,8 x, 1 x, 2 x, 3 x e 4 x ;Distância livre de trabalho de 110 mm; Tubo binocular com ângulo de inclinação de 45°, com ajuste interpupilar entre 55 e 75 mm; Encaixe para oculares com 30 mm de diâmetro e campo visual máximo de 23 mm; Utiliza suporte para o corpo com 76 mm de diâmetro; Interface com diâmetro de 66 mm para iluminadores; Rosca M52 para lentes frontais ou analisador; Iluminação vertical LED integrada, para estativas KEDU / LAB / MAT ou controlador K LED; Oculares focalizáveis de 10 x / 23 Br; Caboespiral RJ12 Estativa K LAB; Base com L 190 x P 310 x A 95 mm; Superfície para trabalho L 160 x P 195 mm; Diâmetro de 84 mm para encaixe de platinas e 45 mm para polarizadores em iluminação transmitida; Coluna com 250 mm, controle de foco macrométrico, alça para transporte e faixa de movimentação vertical de 145 mm; Suporte para corpo de Stemi com 76 mm de diâmetro, com capacidade para suportar até 5 Kg, ajuste da intensidade da fricção domovimento vertical ( foco ); Iluminação transmitida com LED, para campo claro, campo escuro e luz oblíqua, com espelho giratório e com movimento vertical; 2 soquetes para iluminação vertical integrada e iluminadores K LED; Controles separados parailuminação transmitida erefletida, lida / desliga / intensidade; Spot duplo de iluminação K LED; Spot duplo para iluminação refletida, em braços tipo pescoço de ganso; 2 x rosca M24 x 0,5 para polarizador; Para estativas K EDU / LAB / MAT. Garantia: 12 meses | D125: Exclusiva | E125: unid | F125: GO | G125: 1 | H125: 1 | I125: 11618.4 | J125: 11618.4 | K125: =J125 -> 11618.4
A126: 68 | B126: 150807 | C126: Motobomba centrífuga de eixo horizontal, multiestágio, dotada de motor elétrico monofásico - 3500rpm, sucção 1" x recalque 1", tensão: monofásica bivolt (127 v ou 220 v),vazão máxima: 6m3/h, pressão máxima: 42,6 mca, potência: 1 cv. Garantia: 12 meses | D126: Exclusiva | E126: unid | F126: GO | G126: 1 | H126: 1 | I126: 1950.34 | J126: 1950.34 | K126: =J126 -> 1950.34
A127: 69 | B127: 67555 | C127: Motor de popa, 15 hp, 2 tempos, motor de partida manual, incluindo: tanque de combustível com capacidade mínima de 2 4litros com mangueira, jogo de ferramentas, cabo de partida de emergência. | D127: Principal | E127: unid | F127: GO | G127: 23 | H127: 31 | I127: 8397.72 | J127: 193147.56 | K127: =SUM(J127:J128) -> 260329.32
E128: unid | F128: MT | G128: 8 | I128: 8397.72 | J128: 67181.76
A129: 70 | B129: 67555 | C129: Motor de popa, 15 hp, 2 tempos, motor de partida manual, incluindo: tanque de combustível com capacidade mínima de 2 4litros com mangueira, jogo de ferramentas, cabo de partida de emergência. | D129: Reserva – ME/EPP | E129: unid | F129: GO | G129: 8 | H129: 10 | I129: 8397.72 | J129: 67181.76 | K129: =J129+J130 -> 83977.2
E130: unid | F130: MT | G130: 2 | I130: 8397.72 | J130: 16795.44
A131: 71 | B131: 372155 | C131: Nitrogênio líquido, aspecto físico incolor, inodoro, altamente refrigerado, número de referência química cas 7727-37-9 | D131: Exclusiva | E131: L | F131: GO | G131: 300 | H131: 300 | I131: 10.33333333 | J131: 3100 | K131: =J131 -> 3100
A132: 72 | B132: 150364 | C132: Palhetas estéreis transparentes para envase de sêmen ou embriões de 0,50ml, equipamento/acessório animal, pacote 2000 unidades | D132: Exclusiva | E132: pct | F132: GO | G132: 2 | H132: 2 | I132: 1489.563333 | J132: 2979.126667 | K132: =J132 -> 2979.126667
A133: 73 | B133: 150718 | C133: Ração para peixes 40 a 45%PB alimentação carnívoros, 2-3mm | D133: Exclusiva | E133: sc (25kg) | F133: GO | G133: 110 | H133: 110 | I133: 134.5 | J133: 14795 | K133: 14795
A134: 74 | B134: 150718 | C134: Ração em pó para alimentação das pós-larvas 52 a 55%PB | D134: Exclusiva | E134: sc (25kg) | F134: GO | G134: 58 | H134: 58 | I134: 140.2766667 | J134: 8136.046667 | K134: 8136.046667
A135: 75 | B135: 150718 | C135: Ração para peixes 45% - microalevino, 0,8 a 1,0 mm | D135: Exclusiva | E135: sc (25kg) | F135: DF | G135: 25 | H135: 85 | I135: 206.25 | J135: 5156.25 | K135: =J135+J136 -> 17531.25
D136: Exclusiva | E136: sc (25kg) | F136: GO | G136: 60 | I136: 206.25 | J136: 12375
A137: 76 | B137: 150718 | C137: Ração para peixes 40 - 45% - onívaros, extrusada 45% PB, granulometria 1 a 2 mm, | D137: Principal | E137: sc (25kg) | F137: DF | G137: 60 | H137: 1859 | I137: 121.4966667 | J137: 7289.8 | K137: =SUM(J137:J139) -> 225862.3033
E138: sc (25kg) | F138: GO | G138: 1379 | I138: 121.4966667 | J138: 167543.9033
E139: sc (25kg) | F139: MT | G139: 420 | I139: 121.4966667 | J139: 51028.6
A140: 77 | B140: 150718 | C140: Ração para peixes 40 - 45% - onívaros, extrusada 45% PB, granulometria 1 a 2 mm, | D140: Reserva – ME/EPP | E140: sc (25kg) | F140: DF | G140: 20 | H140: 619 | I140: 121.4966667 | J140: 2429.933333 | K140: =J140+J141+J142 -> 75206.43667
E141: sc (25kg) | F141: GO | G141: 459 | I141: 121.4966667 | J141: 55766.97
E142: sc (25kg) | F142: MT | G142: 140 | I142: 121.4966667 | J142: 17009.53333
A143: 78 | B143: 150718 | C143: Ração para peixes 36% - onívaros, extrusada 36% PB, granulometria 2 a 4 mm | D143: Principal | E143: sc (25kg) | F143: DF | G143: 120 | H143: 3666 | I143: 74.07 | J143: 8888.4 | K143: =SUM(J143:J145) -> 271540.62
E144: sc (25kg) | F144: GO | G144: 2721 | I144: 74.07 | J144: 201544.47
E145: sc (25kg) | F145: MT | G145: 825 | I145: 74.07 | J145: 61107.75
A146: 79 | B146: 150718 | C146: Ração para peixes 36% - onívaros, extrusada 36% PB, granulometria 2 a 4 mm | D146: Reserva – ME/EPP | E146: sc (25kg) | F146: DF | G146: 40 | H146: 1222 | I146: 74.07 | J146: 2962.8 | K146: =J146+J147+J148 -> 90513.54
E147: sc (25kg) | F147: GO | G147: 907 | I147: 74.07 | J147: 67181.49
E148: sc (25kg) | F148: MT | G148: 275 | I148: 74.07 | J148: 20369.25
A149: 80 | B149: 150718 | C149: Ração para peixes 32% – onívaros, extrusada 32% PB, granulometria 4 a 6 mm | D149: Principal | E149: sc (25kg) | F149: DF | G149: 384 | H149: 11558 | I149: 69.53 | J149: =I149*G149 -> 26699.52 | K149: =J149+J150+J151 -> 803627.74
E150: sc (25kg) | F150: GO | G150: 8399 | I150: 69.53 | J150: =I150*G150 -> 583982.47
E151: sc (25kg) | F151: MT | G151: 2775 | I151: 69.53 | J151: =I151*G151 -> 192945.75
A152: 81 | B152: 150718 | C152: Ração para peixes 32% – onívaros, extrusada 32% PB, granulometria 4 a 6 mm | D152: Reserva – ME/EPP | E152: sc (25kg) | F152: DF | G152: 127 | H152: 3852 | I152: 69.53 | J152: 8830.31 | K152: =J152+J153+J154 -> 267829.56
E153: sc (25kg) | F153: GO | G153: 2800 | I153: 69.53 | J153: 194684
E154: sc (25kg) | F154: MT | G154: 925 | I154: 69.53 | J154: =G154*I154 -> 64315.25
A155: 82 | B155: 150718 | C155: Ração para peixes 32% 6 a 8 mm - onívaros, extrusada 32% PB, granulometria 6 a 8 mm | D155: Principal | E155: sc (25kg) | F155: DF | G155: 1920 | H155: 56640 | I155: 57.14 | J155: 109708.8 | K155: =SUM(J155:J157) -> 3236409.6
E156: sc (25kg) | F156: GO | G156: 40860 | I156: 57.14 | J156: 2334740.4
E157: sc (25kg) | F157: MT | G157: 13860 | I157: 57.14 | J157: 791960.4
A158: 83 | B158: 150718 | C158: Ração para peixes 32% 6 a 8 mm - onívaros, extrusada 32% PB, granulometria 6 a 8 mm | D158: Reserva – ME/EPP | E158: sc (25kg) | F158: DF | G158: 640 | H158: 18880 | I158: 57.14 | J158: 36569.6 | K158: =J158+J159+J160 -> 1078803.2
E159: sc (25kg) | F159: GO | G159: 13620 | I159: 57.14 | J159: 778246.8
E160: sc (25kg) | F160: MT | G160: 4620 | I160: 57.14 | J160: 263986.8
A161: 84 | B161: 107298 | C161: Rede de arrasto para alevinos (8 mm), altura 2m, comprimento 30m | D161: Principal | E161: unid | F161: DF | G161: 11 | H161: 36 | I161: 1670.72 | J161: 18377.92 | K161: =J161+J162+J163 -> 60145.92
E162: unid | F162: GO | G162: 17 | I162: 1670.72 | J162: 28402.24
E163: unid | F163: MT | G163: 8 | I163: 1670.72 | J163: 13365.76
A164: 85 | B164: 107298 | C164: Rede de arrasto para alevinos (8 mm), altura 2m, comprimento 30m | D164: Reserva – ME/EPP | E164: unid | F164: DF | G164: 3 | H164: 12 | I164: 1670.72 | J164: 5012.16 | K164: =J164+J165+J166 -> 20048.64
E165: unid | F165: GO | G165: 6 | I165: 1670.72 | J165: 10024.32
E166: unid | F166: MT | G166: 3 | I166: 1670.72 | J166: 5012.16
A167: 86 | B167: 150181 | C167: Rede Puçá Confeccionado em formato circular com 40 a 50 cm de diâmetro cabo com 60 cm de comprimento, toda estrutura em alumínio, rede de nylon multifilamento com abertura de malha de 5 mm | D167: Exclusiva | E167: unid | F167: GO | G167: 110 | H167: 170 | I167: 207.7933333 | J167: 22857.26667 | K167: =J167+J168 -> 35324.86667
D168: Exclusiva | E168: unid | F168: MT | G168: 60 | I168: 207.7933333 | J168: 12467.6
A169: 87 | B169: 150782 | C169: Regulador de pressão de oxigênio, Pressão de trabalho: 200 bar, conexão em porca ABNT 218-1 | D169: Exclusiva | E169: unid | F169: GO | G169: 3 | H169: 3 | I169: 272.7433333 | J169: 818.23 | K169: =J169 -> 818.23
A170: 88 | B170: 291927 | C170: Rolo de Corda trançada, polipropileno, 18mm,100m | D170: Principal | E170: unid | F170: GO | G170: 158 | H170: 210 | I170: 538.09 | J170: 85018.22 | K170: =J170+J171 -> 112998.9
E171: unid | F171: MT | G171: 52 | I171: 538.09 | J171: 27980.68
A172: 89 | B172: 291927 | C172: Rolo de Corda trançada, polipropileno, 18mm,100m | D172: Reserva – ME/EPP | E172: unid | F172: GO | G172: 52 | H172: 70 | I172: 538.09 | J172: 27980.68 | K172: =J172+J173 -> 37666.3
E173: unid | F173: MT | G173: 18 | I173: 538.09 | J173: 9685.62
A174: 90 | B174: 150787 | C174: Tanques-rede 3,00 x 3,00m x 3,00m ou outra dimensão que perfaça no mínimo 27m³ com pelo menos 2,8m de profundidade , confeccionados em estrutura tubular de alumínio naval de alta resistência ou aço galvanizado a fogo, fixada com parafusos inoxidáveis autotravantes, com tampa basculável em alumínio com tela com malha de 1,5mm para impedir de ataques de aves e furtos para os dois lados. Tela tipo aço inox com malha 19 mm. Acompanham comedouro para evitar a perda da ração, além de quatro flutuadores de polietileno de alta densidade, hidrodinâmicos de alta resistência com proteção contra raios UV, 3 anos de garantia, e aprovados pela Marinha do Brasil. | D174: Principal | E174: unid | F174: DF | G174: 8 | H174: 1200 | I174: 5625 | J174: 45000 | K174: =SUM(J174:J176) -> 6750000
E175: unid | F175: GO | G175: 892 | I175: 5625 | J175: 5017500
E176: unid | F176: MT | G176: 300 | I176: 5625 | J176: =G176*I177 -> 1687500
A177: 91 | B177: 150787 | C177: Tanques-rede 3,00 x 3,00m x 3,00m ou outra dimensão que perfaça no mínimo 27m³ com pelo menos 2,8m de profundidade , confeccionados em estrutura tubular de alumínio naval de alta resistência ou aço galvanizado a fogo, fixada com parafusos inoxidáveis autotravantes, com tampa basculável em alumínio com tela com malha de 1,5mm para impedir de ataques de aves e furtos para os dois lados. Tela tipo aço inox com malha 19 mm. Acompanham comedouro para evitar a perda da ração, além de quatro flutuadores de polietileno de alta densidade, hidrodinâmicos de alta resistência com proteção contra raios UV, 3 anos de garantia, e aprovados pela Marinha do Brasil. | D177: Reserva – ME/EPP | E177: unid | F177: DF | G177: 2 | H177: 400 | I177: 5625 | J177: =G177*I178 -> 11250 | K177: =J177+J178+J179 -> 2250000
E178: unid | F178: GO | G178: 298 | I178: 5625 | J178: 1676250
E179: unid | F179: MT | G179: 100 | I179: 5625 | J179: 562500
A180: 92 | B180: 225210 | C180: Tarrafa , Confeccionada em Náilon, monofilamento, com sistema de fechamento por meio de argolas, malha de 7 a 25 mm, fio 25,altura de 1,5 a 3,0 m e perímetro de 11 a 22 m | D180: Exclusiva | E180: unid | F180: DF | G180: 15 | H180: 47 | I180: 414.3033333 | J180: 6214.55 | K180: =J180+J181+J182 -> 19472.25667
D181: Exclusiva | E181: unid | F181: GO | G181: 20 | I181: 414.3033333 | J181: 8286.066667
D182: Exclusiva | E182: unid | F182: MT | G182: 12 | I182: 414.3033333 | J182: 4971.64
A183: 93 | B183: 253058 | C183: Termostatos com aquecedor para aquario ,500 Watts, 220V | D183: Exclusiva | E183: unid | F183: GO | G183: 30 | H183: 30 | I183: 151.38 | J183: 4541.4 | K183: =J183 -> 4541.4
A184: 94 | B184: 31895 | C184: Transformado automático - 5000va Até 12.000 Btus, bivolt, troca de tensão 110 (127V) para 220V e de E 220V para 110 (127V) | D184: Exclusiva | E184: unid | F184: GO | G184: 1 | H184: 1 | I184: 153.61 | J184: 153.61 | K184: =J184 -> 153.61
A185: 95 | B185: 409760 | C185: Tubo de centrifugação,polipropileno, tipo fundo fundo cônico, capacidade , 15 ml. estéril, acessórios tampa rosqueável, graduação graduado, uso autoclavável, pacote 1000un | D185: Exclusiva | E185: unid | F185: GO | G185: 5 | H185: 5 | I185: 52.73 | J185: 263.65 | K185: 263.65
A186: 96 | B186: 332929 | C186: Touca higiénica descartável, Sanfonada, com elástico nas bordas, em Polipropileno/TNT, Pacote com 100 unidades (caixa com 100und) | D186: Exclusiva | E186: cx | F186: GO | G186: 50 | H186: 80 | I186: 51.80333333 | J186: 2590.166667 | K186: =J186+J187 -> 4144.266667
E187: cx | F187: MT | G187: 30 | I187: 51.80333333 | J187: 1554.1
A188: 97 | B188: 321945 | C188: Ureia, composição química nitrogênio:46 per, apresentação:granulado, cor:branca, características adicionais:fórmula química nh2conh2, saco 50 kg | D188: Exclusiva | E188: sc | F188: GO | G188: 20 | H188: 20 | I188: 136.0866667 | J188: 2721.733333 | K188: =J188 -> 2721.733333
A189: Total | K189: 34635751.28
